[Event "*** Titled Tuesday Blitz"]
[Site "Chess.com"]
[Date "2020.05.05"]
[Round "6"]
[White "mirciulica14"]
[Black "JulAnt"]
[Result "0-1"]
[WhiteElo "2611"]
[BlackElo "2461"]
[TimeControl "180+1"]
[EndTime "11:08:16 PDT"]
[Termination "JulAnt won on time"]

1. d4 {[%clk 0:03:00.9]} 1... Nf6 {[%clk 0:02:59.6]} 2. c4 {[%clk 0:03:01.1]}
2... g6 {[%clk 0:02:59.6]} 3. g3 {[%clk 0:03:01]} 3... Bg7 {[%clk 0:02:59.4]} 4.
Bg2 {[%clk 0:03:01.7]} 4... O-O {[%clk 0:02:59.7]} 5. Nc3 {[%clk 0:03:02.4]}
5... d6 {[%clk 0:03:00.1]} 6. Nf3 {[%clk 0:03:03]} 6... Nc6 {[%clk 0:03:00.4]}
7. O-O {[%clk 0:03:03.7]} 7... Bg4 {[%clk 0:03:00.4]} 8. d5 {[%clk 0:03:04.1]}
8... Na5 {[%clk 0:03:00.1]} 9. Nd2 {[%clk 0:02:58.2]} 9... c5 {[%clk 0:02:59.6]}
10. Qc2 {[%clk 0:02:56.2]} 10... a6 {[%clk 0:02:59.1]} 11. b3 {[%clk 0:02:56.4]}
11... b5 {[%clk 0:02:58.3]} 12. Bb2 {[%clk 0:02:56.7]} 12... Rb8 {[%clk
0:02:58.5]} 13. Rab1 {[%clk 0:02:56.3]} 13... Qc7 {[%clk 0:02:57.4]} 14. h3
{[%clk 0:02:52.4]} 14... Bd7 {[%clk 0:02:56.9]} 15. e4 {[%clk 0:02:45.8]} 15...
Rb7 {[%clk 0:02:56.3]} 16. f4 {[%clk 0:02:37.7]} 16... Rfb8 {[%clk 0:02:56]} 17.
Nd1 {[%clk 0:02:38]} 17... Ne8 {[%clk 0:02:40.5]} 18. Bxg7 {[%clk 0:02:36]}
18... Nxg7 {[%clk 0:02:41.4]} 19. Ne3 {[%clk 0:02:32]} 19... bxc4 {[%clk
0:02:25.1]} 20. bxc4 {[%clk 0:02:31.1]} 20... Rb4 {[%clk 0:02:25.2]} 21. g4
{[%clk 0:02:10.3]} 21... Ba4 {[%clk 0:02:22.5]} 22. Qc3 {[%clk 0:02:10.5]} 22...
Rxb1 {[%clk 0:02:10.7]} 23. Rxb1 {[%clk 0:02:11.4]} 23... Rxb1+ {[%clk
0:02:10.8]} 24. Nxb1 {[%clk 0:02:12.3]} 24... Qb6 {[%clk 0:02:11.2]} 25. Nd2
{[%clk 0:02:12.6]} 25... Qb4 {[%clk 0:01:57.9]} 26. Qc1 {[%clk 0:02:12.8]} 26...
Ne8 {[%clk 0:01:51.4]} 27. e5 {[%clk 0:02:11.1]} 27... Nc7 {[%clk 0:01:20]} 28.
exd6 {[%clk 0:01:52.9]} 28... exd6 {[%clk 0:01:20.3]} 29. Ne4 {[%clk 0:01:53.4]}
29... Qb6 {[%clk 0:01:12.4]} 30. Qa1 {[%clk 0:01:45.4]} 30... Ne8 {[%clk
0:01:11.6]} 31. f5 {[%clk 0:01:33]} 31... Qb4 {[%clk 0:01:10.3]} 32. Qc1 {[%clk
0:01:25.9]} 32... Bd7 {[%clk 0:01:06.1]} 33. fxg6 {[%clk 0:01:22.7]} 33... hxg6
{[%clk 0:01:07]} 34. h4 {[%clk 0:01:13.5]} 34... Qa4 {[%clk 0:01:00.2]} 35. Ng5
{[%clk 0:00:18.1]} 35... Qxa2 {[%clk 0:00:56.4]} 36. Qf1 {[%clk 0:00:18.5]}
36... f6 {[%clk 0:00:51.3]} 37. Ne4 {[%clk 0:00:18.7]} 37... Qb2 {[%clk
0:00:46]} 38. Kh1 {[%clk 0:00:08.8]} 38... Qd4 {[%clk 0:00:45.4]} 39. Qe2 {[%clk
0:00:05.7]} 39... Nb3 {[%clk 0:00:34.5]} 40. Ng3 {[%clk 0:00:03]} 40... Qd2
{[%clk 0:00:25.6]} 41. Qf3 {[%clk 0:00:03.1]} 41... Nd4 {[%clk 0:00:20.1]} 42.
Qe4 {[%clk 0:00:03.7]} 42... Qe1+ {[%clk 0:00:20.2]} 43. Kh2 {[%clk 0:00:03.8]}
43... Kf7 {[%clk 0:00:19.8]} 44. h5 {[%clk 0:00:04]} 44... gxh5 {[%clk
0:00:16.2]} 45. gxh5 {[%clk 0:00:03.3]} 45... f5 {[%clk 0:00:14]} 46. Qf4 {[%clk
0:00:03.7]} 46... Nf6 {[%clk 0:00:09.9]} 0-1

[Event "*** Titled Tuesday Blitz"]
[Site "Chess.com"]
[Date "2020.05.05"]
[Round "6"]
[White "MartinMatthiesen"]
[Black "Boliviar"]
[Result "0-1"]
[WhiteElo "2450"]
[BlackElo "2334"]
[TimeControl "180+1"]
[EndTime "11:08:17 PDT"]
[Termination "Boliviar won on time"]

1. d4 {[%clk 0:03:00.9]} 1... d5 {[%clk 0:02:58.4]} 2. c4 {[%clk 0:02:59.8]}
2... c6 {[%clk 0:02:57.1]} 3. Nf3 {[%clk 0:02:59.4]} 3... Nf6 {[%clk 0:02:52.9]}
4. Nc3 {[%clk 0:02:59]} 4... dxc4 {[%clk 0:02:52.4]} 5. a4 {[%clk 0:02:58.5]}
5... Bf5 {[%clk 0:02:52.1]} 6. Ne5 {[%clk 0:02:54]} 6... Nbd7 {[%clk 0:02:50]}
7. Nxc4 {[%clk 0:02:53.5]} 7... Nb6 {[%clk 0:02:49.1]} 8. Ne5 {[%clk 0:02:52.9]}
8... Nbd7 {[%clk 0:02:49]} 9. Qb3 {[%clk 0:02:51.8]} 9... Nxe5 {[%clk
0:02:32.1]} 10. dxe5 {[%clk 0:02:51.3]} 10... Nd7 {[%clk 0:02:32.5]} 11. Qxb7
{[%clk 0:02:49.8]} 11... Nxe5 {[%clk 0:02:22]} 12. Bf4 {[%clk 0:02:28.9]} 12...
Ng6 {[%clk 0:02:11.2]} 13. Bc7 {[%clk 0:02:06]} 13... Qc8 {[%clk 0:02:02.7]} 14.
Qxc8+ {[%clk 0:01:47.9]} 14... Rxc8 {[%clk 0:02:01.3]} 15. Bg3 {[%clk
0:01:48.4]} 15... e5 {[%clk 0:01:59.2]} 16. e4 {[%clk 0:01:47.5]} 16... Be6
{[%clk 0:01:54.3]} 17. O-O-O {[%clk 0:01:45]} 17... Bb4 {[%clk 0:01:32.5]} 18.
Bd3 {[%clk 0:01:38.6]} 18... Ke7 {[%clk 0:01:25]} 19. Bc2 {[%clk 0:01:24.1]}
19... Rhd8 {[%clk 0:01:15.7]} 20. Rxd8 {[%clk 0:01:22.7]} 20... Rxd8 {[%clk
0:01:16.6]} 21. Rd1 {[%clk 0:01:20.2]} 21... Rxd1+ {[%clk 0:01:13.8]} 22. Nxd1
{[%clk 0:01:06.9]} 22... Bc4 {[%clk 0:00:51.6]} 23. Ne3 {[%clk 0:01:05.5]} 23...
Be6 {[%clk 0:00:51]} 24. f3 {[%clk 0:01:01.4]} 24... Bc5 {[%clk 0:00:48.5]} 25.
Kd2 {[%clk 0:01:00.4]} 25... Bd4 {[%clk 0:00:47.3]} 26. b3 {[%clk 0:00:55.6]}
26... f6 {[%clk 0:00:42.8]} 27. Bf2 {[%clk 0:00:54.2]} 27... Nf4 {[%clk
0:00:40.2]} 28. g3 {[%clk 0:00:52.5]} 28... Nh3 {[%clk 0:00:37.1]} 29. Be1
{[%clk 0:00:52.3]} 29... Ng1 {[%clk 0:00:29]} 30. Bd1 {[%clk 0:00:50.1]} 30...
g6 {[%clk 0:00:20.4]} 31. Nc4 {[%clk 0:00:44.4]} 31... Bxc4 {[%clk 0:00:18.5]}
32. bxc4 {[%clk 0:00:43.9]} 32... Kd6 {[%clk 0:00:17.3]} 33. Kd3 {[%clk
0:00:41.5]} 33... Kc5 {[%clk 0:00:15.9]} 34. Ba5 {[%clk 0:00:39.3]} 34... f5
{[%clk 0:00:14.4]} 35. Bd8 {[%clk 0:00:38.3]} 35... fxe4+ {[%clk 0:00:13.7]} 36.
fxe4 {[%clk 0:00:37.4]} 36... Nh3 {[%clk 0:00:14]} 37. Be7+ {[%clk 0:00:36.5]}
37... Kb6 {[%clk 0:00:13.3]} 38. Bf3 {[%clk 0:00:34.8]} 38... Nf2+ {[%clk
0:00:10.8]} 39. Ke2 {[%clk 0:00:33.4]} 39... Ka5 {[%clk 0:00:07.2]} 40. Bd6
{[%clk 0:00:18.7]} 40... Kxa4 {[%clk 0:00:06.4]} 41. Bxe5 {[%clk 0:00:16.6]}
41... Bxe5 {[%clk 0:00:07.3]} 42. Kxf2 {[%clk 0:00:17]} 42... Kb4 {[%clk
0:00:07.7]} 43. Be2 {[%clk 0:00:16.9]} 43... a5 {[%clk 0:00:07.6]} 44. Ke3
{[%clk 0:00:08.7]} 44... Kc3 {[%clk 0:00:07.6]} 45. Bd1 {[%clk 0:00:05.3]} 45...
Kxc4 {[%clk 0:00:07.7]} 46. Ba4 {[%clk 0:00:03.5]} 46... c5 {[%clk 0:00:07.9]}
47. Bc6 {[%clk 0:00:01.5]} 47... Kc3 {[%clk 0:00:07.9]} 0-1

[Event "*** Titled Tuesday Blitz"]
[Site "Chess.com"]
[Date "2020.05.05"]
[Round "6"]
[White "DDTerziev04"]
[Black "Shivagami"]
[Result "0-1"]
[WhiteElo "2273"]
[BlackElo "2155"]
[TimeControl "180+1"]
[EndTime "11:08:18 PDT"]
[Termination "Shivagami won on time"]

1. e4 {[%clk 0:02:57]} 1... e5 {[%clk 0:02:55.5]} 2. Nf3 {[%clk 0:02:56.6]} 2...
Nc6 {[%clk 0:02:55.2]} 3. Bc4 {[%clk 0:02:57.1]} 3... Nf6 {[%clk 0:02:55]} 4. d3
{[%clk 0:02:56.5]} 4... Be7 {[%clk 0:02:53.2]} 5. O-O {[%clk 0:02:56.7]} 5...
O-O {[%clk 0:02:53]} 6. c3 {[%clk 0:02:54.7]} 6... d6 {[%clk 0:02:51.4]} 7. Bb3
{[%clk 0:02:53.3]} 7... Na5 {[%clk 0:02:49.8]} 8. Bc2 {[%clk 0:02:52.9]} 8... c5
{[%clk 0:02:50.3]} 9. d4 {[%clk 0:02:51.4]} 9... Nc6 {[%clk 0:02:43.1]} 10. h3
{[%clk 0:02:47.4]} 10... Qc7 {[%clk 0:02:30.6]} 11. Bg5 {[%clk 0:02:41.2]} 11...
h6 {[%clk 0:02:29.4]} 12. Bxf6 {[%clk 0:02:37.8]} 12... Bxf6 {[%clk 0:02:28.6]}
13. Na3 {[%clk 0:02:38.3]} 13... Ne7 {[%clk 0:02:27]} 14. Nb5 {[%clk 0:02:23.9]}
14... Qb6 {[%clk 0:02:21.5]} 15. dxe5 {[%clk 0:01:58.4]} 15... dxe5 {[%clk
0:02:19.7]} 16. Qe2 {[%clk 0:01:57.4]} 16... a6 {[%clk 0:02:09.9]} 17. Na3
{[%clk 0:01:56.9]} 17... Qxb2 {[%clk 0:02:06.3]} 18. Nc4 {[%clk 0:01:57.3]}
18... Qxc3 {[%clk 0:02:06.1]} 19. Rac1 {[%clk 0:01:45.2]} 19... Be6 {[%clk
0:01:56.6]} 20. Bb3 {[%clk 0:01:44.3]} 20... Bxc4 {[%clk 0:01:46.6]} 21. Bxc4
{[%clk 0:01:35.5]} 21... Qa5 {[%clk 0:01:46.8]} 22. Rb1 {[%clk 0:01:34]} 22...
b5 {[%clk 0:01:45.8]} 23. Bd5 {[%clk 0:01:33.8]} 23... Rad8 {[%clk 0:01:42.8]}
24. Rfd1 {[%clk 0:01:31]} 24... c4 {[%clk 0:01:32.8]} 25. a4 {[%clk 0:01:27.3]}
25... Rd6 {[%clk 0:01:26.4]} 26. axb5 {[%clk 0:01:26.7]} 26... axb5 {[%clk
0:01:26.5]} 27. Ra1 {[%clk 0:01:26.5]} 27... Qb6 {[%clk 0:01:23.1]} 28. Rab1
{[%clk 0:01:07.7]} 28... Qc5 {[%clk 0:01:15.8]} 29. Nd2 {[%clk 0:00:35.2]} 29...
Nxd5 {[%clk 0:01:13.9]} 30. exd5 {[%clk 0:00:33.1]} 30... Rxd5 {[%clk
0:01:10.2]} 31. Ne4 {[%clk 0:00:33.6]} 31... Rxd1+ {[%clk 0:01:10]} 32. Rxd1
{[%clk 0:00:34.5]} 32... Qe7 {[%clk 0:01:04.8]} 33. Rd5 {[%clk 0:00:33.1]} 33...
Rb8 {[%clk 0:01:01.1]} 34. Qb2 {[%clk 0:00:29.4]} 34... b4 {[%clk 0:00:57.4]}
35. Rc5 {[%clk 0:00:16.7]} 35... Qe6 {[%clk 0:00:47.5]} 36. Qc2 {[%clk
0:00:13.5]} 36... b3 {[%clk 0:00:46.1]} 37. Qb2 {[%clk 0:00:13.3]} 37... Rd8
{[%clk 0:00:37]} 38. Qc3 {[%clk 0:00:11.4]} 38... Rd3 {[%clk 0:00:28.6]} 39. Qb4
{[%clk 0:00:06.2]} 39... Qf5 {[%clk 0:00:20.6]} 40. f3 {[%clk 0:00:03.7]} 40...
Rd1+ {[%clk 0:00:19.2]} 41. Kf2 {[%clk 0:00:03.8]} 41... Qf4 {[%clk 0:00:18.3]}
42. Rc8+ {[%clk 0:00:02.7]} 42... Kh7 {[%clk 0:00:18.1]} 43. Qf8 {[%clk
0:00:01.1]} 43... Bh4+ {[%clk 0:00:17.6]} 0-1

[Event "*** Titled Tuesday Blitz"]
[Site "Chess.com"]
[Date "2020.05.05"]
[Round "6"]
[White "Igrok3069"]
[Black "Fighter008"]
[Result "0-1"]
[WhiteElo "2757"]
[BlackElo "2568"]
[TimeControl "180+1"]
[EndTime "11:08:19 PDT"]
[Termination "Fighter008 won on time"]

1. d4 {[%clk 0:03:00.9]} 1... Nf6 {[%clk 0:02:59.1]} 2. c4 {[%clk 0:03:00.4]}
2... g6 {[%clk 0:02:58.5]} 3. Nc3 {[%clk 0:02:59.8]} 3... Bg7 {[%clk 0:02:58.6]}
4. e4 {[%clk 0:02:59.6]} 4... d6 {[%clk 0:02:59]} 5. Be2 {[%clk 0:02:59.5]} 5...
O-O {[%clk 0:02:58.6]} 6. Be3 {[%clk 0:02:59.5]} 6... e5 {[%clk 0:02:58.4]} 7.
Nf3 {[%clk 0:02:58.5]} 7... Ng4 {[%clk 0:02:51.8]} 8. Bg5 {[%clk 0:02:55.9]}
8... f6 {[%clk 0:02:52]} 9. Bh4 {[%clk 0:02:55.2]} 9... Nc6 {[%clk 0:02:52.2]}
10. d5 {[%clk 0:02:53.9]} 10... Ne7 {[%clk 0:02:52.3]} 11. Nd2 {[%clk
0:02:53.6]} 11... Nh6 {[%clk 0:02:48.2]} 12. Qc2 {[%clk 0:02:44.1]} 12... c5
{[%clk 0:02:39.9]} 13. dxc6 {[%clk 0:02:39.6]} 13... bxc6 {[%clk 0:02:39.4]} 14.
c5 {[%clk 0:02:10.3]} 14... d5 {[%clk 0:02:38.4]} 15. f3 {[%clk 0:02:10.3]}
15... Be6 {[%clk 0:02:20]} 16. O-O-O {[%clk 0:02:07.3]} 16... Qa5 {[%clk
0:02:06.6]} 17. Nb3 {[%clk 0:02:04.9]} 17... Qb4 {[%clk 0:02:06.8]} 18. Be1
{[%clk 0:01:57.2]} 18... Qb7 {[%clk 0:01:56.2]} 19. h4 {[%clk 0:01:44.8]} 19...
f5 {[%clk 0:01:41.3]} 20. h5 {[%clk 0:01:42.9]} 20... Nf7 {[%clk 0:01:30.4]} 21.
hxg6 {[%clk 0:01:41.7]} 21... hxg6 {[%clk 0:01:28.7]} 22. g4 {[%clk 0:01:40.2]}
22... f4 {[%clk 0:01:26.2]} 23. Bh4 {[%clk 0:01:33.4]} 23... g5 {[%clk
0:01:22.3]} 24. exd5 {[%clk 0:01:28.7]} 24... cxd5 {[%clk 0:01:20]} 25. Bf2
{[%clk 0:01:26.8]} 25... Rfc8 {[%clk 0:01:12.8]} 26. Kb1 {[%clk 0:01:10.3]}
26... a5 {[%clk 0:01:12.1]} 27. c6 {[%clk 0:01:02.2]} 27... Rxc6 {[%clk
0:01:08]} 28. Nc5 {[%clk 0:00:53.1]} 28... Rxc5 {[%clk 0:01:08.2]} 29. Bxc5
{[%clk 0:00:48.6]} 29... Rc8 {[%clk 0:01:06.8]} 30. Bxe7 {[%clk 0:00:38.6]}
30... Qxe7 {[%clk 0:01:06.7]} 31. Nxd5 {[%clk 0:00:38.7]} 31... Qb7 {[%clk
0:00:54.1]} 32. Nf6+ {[%clk 0:00:32.4]} 32... Bxf6 {[%clk 0:00:49.9]} 33. Qg6+
{[%clk 0:00:31.1]} 33... Bg7 {[%clk 0:00:50.3]} 34. Qxe6 {[%clk 0:00:25.6]}
34... e4 {[%clk 0:00:50.2]} 35. Qb3 {[%clk 0:00:23.4]} 35... Qxb3 {[%clk
0:00:29.9]} 36. axb3 {[%clk 0:00:24.3]} 36... e3 {[%clk 0:00:30.2]} 37. Bc4
{[%clk 0:00:21.2]} 37... Kf8 {[%clk 0:00:30]} 38. Rd5 {[%clk 0:00:07.1]} 38...
Ne5 {[%clk 0:00:27.3]} 39. Be2 {[%clk 0:00:07.7]} 39... Rb8 {[%clk 0:00:24.6]}
40. Ka2 {[%clk 0:00:06.2]} 40... Nc6 {[%clk 0:00:19.1]} 41. Rf5+ {[%clk
0:00:05.5]} 41... Ke7 {[%clk 0:00:18.2]} 42. Rxg5 {[%clk 0:00:02.6]} 42... Bf6
{[%clk 0:00:17.7]} 43. Rh7+ {[%clk 0:00:01.9]} 43... Kd6 {[%clk 0:00:16.2]} 44.
Rg6 {[%clk 0:00:01.6]} 44... Ke5 {[%clk 0:00:16.5]} 45. g5 {[%clk 0:00:02.2]}
45... Be7 {[%clk 0:00:16.1]} 46. Bc4 {[%clk 0:00:01.4]} 46... a4 {[%clk
0:00:16.8]} 0-1

[Event "*** Titled Tuesday Blitz"]
[Site "Chess.com"]
[Date "2020.05.05"]
[Round "6"]
[White "awesomevishesh"]
[Black "MarcoCorvi"]
[Result "1-0"]
[WhiteElo "2476"]
[BlackElo "2246"]
[TimeControl "180+1"]
[EndTime "11:08:19 PDT"]
[Termination "awesomevishesh won by checkmate"]

1. d4 {[%clk 0:03:00.9]} 1... Nf6 {[%clk 0:02:58.6]} 2. c4 {[%clk 0:02:58.4]}
2... g6 {[%clk 0:02:58.9]} 3. Nc3 {[%clk 0:02:57.5]} 3... Bg7 {[%clk 0:02:59.3]}
4. Nf3 {[%clk 0:02:56.9]} 4... O-O {[%clk 0:02:59.6]} 5. g3 {[%clk 0:02:56.2]}
5... d6 {[%clk 0:02:59.8]} 6. Bg2 {[%clk 0:02:43.2]} 6... Nc6 {[%clk 0:02:59.7]}
7. O-O {[%clk 0:02:42.8]} 7... Bf5 {[%clk 0:02:53.5]} 8. d5 {[%clk 0:02:41.8]}
8... Na5 {[%clk 0:02:52.3]} 9. Nd2 {[%clk 0:02:40.2]} 9... c6 {[%clk 0:02:34.5]}
10. b4 {[%clk 0:02:20.7]} 10... Nxc4 {[%clk 0:01:42.8]} 11. Nxc4 {[%clk
0:02:19.8]} 11... Nxd5 {[%clk 0:01:41.7]} 12. Nxd5 {[%clk 0:02:10.8]} 12... Bxa1
{[%clk 0:01:37]} 13. Bh6 {[%clk 0:01:42.6]} 13... Bg7 {[%clk 0:01:35.8]} 14.
Bxg7 {[%clk 0:01:40.9]} 14... Kxg7 {[%clk 0:01:36.7]} 15. Nde3 {[%clk
0:01:35.8]} 15... Bd7 {[%clk 0:01:30.4]} 16. Qd4+ {[%clk 0:01:31.5]} 16... f6
{[%clk 0:01:29.4]} 17. h4 {[%clk 0:01:11.2]} 17... d5 {[%clk 0:01:28.6]} 18. Na5
{[%clk 0:01:06.9]} 18... e5 {[%clk 0:01:25.5]} 19. Qb2 {[%clk 0:00:52.4]} 19...
Qb6 {[%clk 0:01:20.8]} 20. Rd1 {[%clk 0:00:50.5]} 20... Be6 {[%clk 0:01:20.1]}
21. Qa3 {[%clk 0:00:31.3]} 21... Rad8 {[%clk 0:01:10.9]} 22. Nb3 {[%clk
0:00:30.5]} 22... d4 {[%clk 0:01:02.2]} 23. Nc5 {[%clk 0:00:30]} 23... Bf7
{[%clk 0:00:56.2]} 24. Nc2 {[%clk 0:00:27.2]} 24... Rfe8 {[%clk 0:00:53.8]} 25.
h5 {[%clk 0:00:14.7]} 25... a6 {[%clk 0:00:53.3]} 26. Qd3 {[%clk 0:00:03.5]}
26... f5 {[%clk 0:00:48.9]} 27. a3 {[%clk 0:00:03.3]} 27... e4 {[%clk
0:00:47.8]} 28. Qd2 {[%clk 0:00:03.8]} 28... e3 {[%clk 0:00:39.3]} 29. fxe3
{[%clk 0:00:03.6]} 29... dxe3 {[%clk 0:00:39.3]} 30. Qc3+ {[%clk 0:00:04.1]}
30... Kf8 {[%clk 0:00:32.2]} 31. Rxd8 {[%clk 0:00:04.3]} 31... Qxd8 {[%clk
0:00:26.8]} 32. Nxe3 {[%clk 0:00:04.7]} 32... Rxe3 {[%clk 0:00:15.4]} 33. Qxe3
{[%clk 0:00:04.4]} 33... Qd1+ {[%clk 0:00:15.2]} 34. Kh2 {[%clk 0:00:04.7]}
34... Qd6 {[%clk 0:00:15]} 35. h6 {[%clk 0:00:04.4]} 35... g5 {[%clk 0:00:14.6]}
36. Qxg5 {[%clk 0:00:03.6]} 36... Ke8 {[%clk 0:00:14.3]} 37. Qg7 {[%clk
0:00:03.8]} 37... Ke7 {[%clk 0:00:12.2]} 38. Nxb7 {[%clk 0:00:03.8]} 38... f4
{[%clk 0:00:12.7]} 39. Nxd6 {[%clk 0:00:03.4]} 39... Kxd6 {[%clk 0:00:13.6]} 40.
gxf4 {[%clk 0:00:03.6]} 40... Ke6 {[%clk 0:00:12.9]} 41. Qe5+ {[%clk 0:00:04.2]}
41... Kd7 {[%clk 0:00:12.6]} 42. Bh3+ {[%clk 0:00:04.9]} 42... Kd8 {[%clk
0:00:12.2]} 43. Qg7 {[%clk 0:00:05.6]} 43... Ke7 {[%clk 0:00:12.1]} 44. Bf5
{[%clk 0:00:06]} 44... Kd6 {[%clk 0:00:11.8]} 45. Qxf7 {[%clk 0:00:05.9]} 45...
c5 {[%clk 0:00:11.8]} 46. Bxh7 {[%clk 0:00:06]} 46... cxb4 {[%clk 0:00:11]} 47.
axb4 {[%clk 0:00:06.9]} 47... Kc6 {[%clk 0:00:10.7]} 48. Qc4+ {[%clk 0:00:06.5]}
48... Kb6 {[%clk 0:00:10.3]} 49. Be4 {[%clk 0:00:06.4]} 49... a5 {[%clk
0:00:11.2]} 50. Qc6+ {[%clk 0:00:06.5]} 50... Ka7 {[%clk 0:00:10.4]} 51. Qb7#
{[%clk 0:00:07.4]} 1-0

[Event "*** Titled Tuesday Blitz"]
[Site "Chess.com"]
[Date "2020.05.05"]
[Round "6"]
[White "DonBroca"]
[Black "rynos0411"]
[Result "1/2-1/2"]
[WhiteElo "2129"]
[BlackElo "2373"]
[TimeControl "180+1"]
[EndTime "11:08:20 PDT"]
[Termination "Game drawn by repetition"]

1. e4 {[%clk 0:03:00.9]} 1... c6 {[%clk 0:02:59.2]} 2. d4 {[%clk 0:03:00.5]}
2... d5 {[%clk 0:02:57.7]} 3. Nc3 {[%clk 0:03:01.4]} 3... dxe4 {[%clk
0:02:55.6]} 4. Nxe4 {[%clk 0:03:02.3]} 4... Bf5 {[%clk 0:02:55.6]} 5. Ng3 {[%clk
0:03:01.3]} 5... Bg6 {[%clk 0:02:56]} 6. h4 {[%clk 0:03:01.8]} 6... h6 {[%clk
0:02:55.7]} 7. h5 {[%clk 0:03:02.2]} 7... Bh7 {[%clk 0:02:55.5]} 8. Nf3 {[%clk
0:03:02.5]} 8... Nf6 {[%clk 0:02:55.4]} 9. Bd3 {[%clk 0:03:03]} 9... Bxd3 {[%clk
0:02:53.8]} 10. Qxd3 {[%clk 0:03:03.9]} 10... Nbd7 {[%clk 0:02:54.2]} 11. Bf4
{[%clk 0:03:03.8]} 11... Qa5+ {[%clk 0:02:51.9]} 12. Bd2 {[%clk 0:03:04.3]}
12... Qc7 {[%clk 0:02:51.5]} 13. O-O-O {[%clk 0:03:03.6]} 13... e6 {[%clk
0:02:51.6]} 14. Kb1 {[%clk 0:02:54.4]} 14... O-O-O {[%clk 0:02:50.2]} 15. c4
{[%clk 0:02:53.6]} 15... Bd6 {[%clk 0:02:46.1]} 16. Ne4 {[%clk 0:02:53.3]} 16...
Nxe4 {[%clk 0:02:46.2]} 17. Qxe4 {[%clk 0:02:53.8]} 17... Nf6 {[%clk 0:02:47.1]}
18. Qe2 {[%clk 0:02:54]} 18... Kb8 {[%clk 0:02:44.9]} 19. Ne5 {[%clk 0:02:48.9]}
19... Rhf8 {[%clk 0:02:41]} 20. Bf4 {[%clk 0:02:19]} 20... Ka8 {[%clk
0:02:31.9]} 21. c5 {[%clk 0:02:18.6]} 21... Bxe5 {[%clk 0:02:20.8]} 22. Bxe5
{[%clk 0:02:18.2]} 22... Qa5 {[%clk 0:02:12.9]} 23. Rh3 {[%clk 0:01:59.8]} 23...
Nd5 {[%clk 0:01:57.5]} 24. Bxg7 {[%clk 0:01:35.2]} 24... Rg8 {[%clk 0:01:50.6]}
25. Rg3 {[%clk 0:01:29.1]} 25... Qa4 {[%clk 0:01:06]} 26. Qc2 {[%clk 0:01:04.3]}
26... Qa6 {[%clk 0:00:47.9]} 27. a3 {[%clk 0:00:40.5]} 27... Nf4 {[%clk
0:00:44.2]} 28. Bxh6 {[%clk 0:00:27.9]} 28... Rxg3 {[%clk 0:00:35.2]} 29. fxg3
{[%clk 0:00:26.3]} 29... Nxh5 {[%clk 0:00:35.6]} 30. Bf4 {[%clk 0:00:23.8]}
30... Qb5 {[%clk 0:00:19.1]} 31. Rh1 {[%clk 0:00:20.4]} 31... Ng7 {[%clk
0:00:14.7]} 32. Qe4 {[%clk 0:00:18.7]} 32... Nf5 {[%clk 0:00:14.4]} 33. Be5
{[%clk 0:00:18.2]} 33... a5 {[%clk 0:00:12.5]} 34. Rh7 {[%clk 0:00:18.1]} 34...
Qf1+ {[%clk 0:00:08.5]} 35. Ka2 {[%clk 0:00:17.1]} 35... Ne7 {[%clk 0:00:07.5]}
36. Qf4 {[%clk 0:00:12.9]} 36... Qc4+ {[%clk 0:00:06.6]} 37. Kb1 {[%clk
0:00:12.3]} 37... Nd5 {[%clk 0:00:07.5]} 38. Qxf7 {[%clk 0:00:11.6]} 38... Qb5
{[%clk 0:00:06.1]} 39. Bc7 {[%clk 0:00:09.4]} 39... Rc8 {[%clk 0:00:04.1]} 40.
Bd6 {[%clk 0:00:08.9]} 40... a4 {[%clk 0:00:04.2]} 41. Rg7 {[%clk 0:00:08.9]}
41... Nc3+ {[%clk 0:00:04]} 42. Kc2 {[%clk 0:00:04.1]} 42... Ne4 {[%clk
0:00:04.1]} 43. Qd7 {[%clk 0:00:02.8]} 43... Qb3+ {[%clk 0:00:03.9]} 44. Kc1
{[%clk 0:00:03.1]} 44... Qe3+ {[%clk 0:00:01.8]} 45. Kb1 {[%clk 0:00:03.6]}
45... Qd3+ {[%clk 0:00:02]} 46. Ka2 {[%clk 0:00:03.9]} 46... Qc4+ {[%clk
0:00:02.1]} 47. Ka1 {[%clk 0:00:04.5]} 47... Qc1+ {[%clk 0:00:02.1]} 48. Ka2
{[%clk 0:00:04.3]} 48... Qc4+ {[%clk 0:00:02.6]} 49. Kb1 {[%clk 0:00:04.3]}
49... Nd2+ {[%clk 0:00:02.9]} 50. Ka1 {[%clk 0:00:03.1]} 50... Qc1+ {[%clk
0:00:03.1]} 51. Ka2 {[%clk 0:00:03.3]} 51... Qc4+ {[%clk 0:00:03.3]} 52. Ka1
{[%clk 0:00:02.3]} 52... Nb3+ {[%clk 0:00:03.2]} 53. Ka2 {[%clk 0:00:03.2]}
53... Nd2+ {[%clk 0:00:02.7]} 54. Ka1 {[%clk 0:00:03.5]} 1/2-1/2